fUST/lending_fUST_20250102
["ID","MTS","AMOUNT","RATE_DAILY","PERIOD"]
[347450698,1735824670954,-964.100164,0.00022588,7]
[347450699,1735824670963,-964.100164,0.00022588,7]
[347450700,1735824670972,-964.100164,0.00022588,7]
[347450701,1735824670981,-964.100164,0.00022588,7]
[347450702,1735824670991,-964.100157,0.00022588,7]
[347450703,1735824670999,-1963046.54427702,0.00022588,10]
[347450704,1735824671304,-500.0,0.00019178,2]
[347450705,1735824671313,-500.0,0.00019178,2]
[347450706,1735824671323,-500.0,0.00019452,3]
[347450707,1735824671333,-500.0,0.00019452,3]
[347450708,1735824671342,-2023.5151463,0.00019695,2]
[347450709,1735824671351,-500.0,0.00019726,3]
[347450710,1735824671364,-500.0,0.00019726,3]
[347450711,1735824671373,-527.89661339,0.000199,2]
[347450715,1735824821791,225.06072332,0.00025,120]
[347450724,1735825129649,185.843225,0.00013973,2]
[347450749,1735825831891,-488.2454982,0.00016488,2]
[347450750,1735825831901,-488.2454982,0.00016655,2]
[347450751,1735825831910,-201.530903,0.00017516,2]
[347450753,1735825831920,-7783.3791424,0.00017589,2]
[347450755,1735825831929,-300.0,0.00017855,2]
[347450756,1735825831939,-3673.48777699,0.00017856,2]
[347450757,1735825831968,-11632.75855351,0.00017856,2]
[347450759,1735825831977,-488.2454982,0.00017869,2]
[347450762,1735825831986,-191.53599832,0.00018,3]
[347450793,1735825837750,-270.25400168,0.00018,3]
[347450794,1735825837760,-600.0,0.00018,2]
[347450795,1735825837770,-773.75415789,0.000189,2]
[347450796,1735825837780,-500.0,0.00019077,2]
[347450797,1735825837789,-161.582,0.00019078,2]
[347450798,1735825837798,-322.53004049,0.00019078,2]
[347450799,1735825837808,-666.0,0.00019078,2]
[347450800,1735825837817,-500.0,0.00019178,2]
[347450801,1735825837828,-500.0,0.00019178,2]
[347450802,1735825837837,-500.0,0.00019178,2]
[347450803,1735825837846,-508.58107273,0.00019178,2]
[347450804,1735825837856,-500.0,0.00019178,2]
[347450805,1735825837866,-500.0,0.00019178,2]
[347450806,1735825837875,-753.33,0.00019178,2]
[347450807,1735825837885,-500.0,0.00019178,2]
[347450808,1735825837894,-259.11601797,0.00019178,2]
[347450809,1735825837904,-500.0,0.00019178,2]
[347450810,1735825837913,-500.0,0.00019178,2]
[347450811,1735825837923,-500.0,0.00019178,2]
[347450812,1735825837932,-500.0,0.00019178,2]
[347450813,1735825837942,-500.0,0.00019178,2]
[347450814,1735825837951,-500.0,0.00019178,2]
[347450815,1735825837961,-500.0,0.00019178,2]
[347450816,1735825837971,-848.5,0.00019178,2]
[347450817,1735825837980,-122.29150252,0.00019178,2]
[347450818,1735825837992,-377.70849748,0.00019178,2]
[347450819,1735825838001,-122.29150252,0.00019178,2]
[347450820,1735825838013,-377.70849748,0.00019178,2]
[347450821,1735825838022,-164.34150252,0.00019178,2]
[347450854,1735825839710,-335.65849748,0.00019178,2]
[347450855,1735825839719,-266.14674607,0.00019178,2]
[347450856,1735825839736,-233.85325393,0.00019178,2]
[347450857,1735825839746,-225.2,0.00019178,2]
[347450858,1735825839756,-500.0,0.00019178,2]
[347450859,1735825839766,-500.0,0.00019178,2]
[347450860,1735825839776,-500.0,0.00019178,2]
[347450861,1735825839785,-500.0,0.00019178,2]
[347450862,1735825839795,-426.76470259,0.00019178,2]
[347450887,1735825842883,-566.56706671,0.0001782,2]
[347450888,1735825842894,-73.23529741,0.00019178,2]
[347450889,1735825842903,-420.09119375,0.00019178,2]
[347450898,1735825846042,-79.90880625,0.00019178,2]
[347450899,1735825846053,-500.0,0.00019178,2]
[347450900,1735825846063,-500.0,0.00019178,2]
[347450901,1735825846072,-315.52,0.00019178,2]
[347450902,1735825846082,-500.0,0.00019178,2]
[347450903,1735825846092,-424.28295326,0.00019178,2]
[347450904,1735825846102,-222.83265642,0.00019178,2]
[347450905,1735825846114,-277.16734358,0.00019178,2]
[347450906,1735825846123,-474.92291525,0.00019178,2]
[347450909,1735826000778,159.184766,0.00013973,2]
[347450914,1735826467589,1000.0,0.00025,120]
[347450915,1735826586708,5000.0,0.00017,6]
[347450916,1735826594930,1649.19528598,0.00017,6]
[347450917,1735826603054,1298.67676099,0.00017,6]
[347450934,1735827032082,-604.76575735,0.0001499,2]
[347450935,1735827032093,-604.76575735,0.00014991,2]
[347450936,1735827032103,-604.76575735,0.00014998,2]
[347450937,1735827032113,-521.71497165,0.00016662,2]
[347450938,1735827032123,-1590.28071774,0.0001673,2]
[347450939,1735827032135,-1397.40289186,0.0001673,2]
[347450940,1735827032145,-155.10186672,0.0001683,2]
[347450941,1735827032156,-250.0,0.00016936,2]
[347450942,1735827032165,-366.61310493,0.00017,2]
[347450943,1735827032174,-2085.7195245,0.00017033,2]
[347450944,1735827032184,-327.6560053,0.00017872,2]
[347450945,1735827032194,-1263.97782554,0.00017873,2]
[347450946,1735827032203,-683.3022281,0.00017914,2]
[347450947,1735827032213,-196.23671774,0.00017971,2]
[347450948,1735827032222,-191.45654496,0.00017971,2]
[347450949,1735827032232,-160.29374376,0.00017971,2]
[347450950,1735827032241,-500.0,0.00017971,2]
[347450951,1735827032254,-199.83745092,0.00017971,2]
[347450952,1735827032263,-500.0,0.00017971,2]
[347450953,1735827032272,-500.0,0.00017971,2]
[347450954,1735827032282,-500.0,0.00017971,2]
[347450955,1735827032290,-3702.81739829,0.00017971,2]
[347450956,1735827032331,-500.0,0.00017971,2]
[347450957,1735827032341,-500.0,0.00017971,2]
[347450958,1735827032350,-500.0,0.00017971,2]
[347450959,1735827032360,-500.0,0.00017971,2]
[347450960,1735827032369,-71939.18260171,0.00017971,2]
[347450961,1735827032382,-11585.13051466,0.00017972,2]
[347450962,1735827032392,-9699.98000363,0.00017972,2]
[347451010,1735827040273,-8922.47281659,0.00017791,2]
[347451011,1735827040282,-500.0,0.00017971,2]
[347451012,1735827040292,-189.82024059,0.00017971,2]
[347451013,1735827040302,-500.0,0.00017971,2]
[347451015,1735827040312,-500.0,0.00017971,2]
[347451016,1735827040321,-500.0,0.00017971,2]
[347451017,1735827040331,-500.0,0.00017971,2]
[347451018,1735827040340,-500.0,0.00017971,2]
[347451019,1735827040349,-500.0,0.00017971,2]
[347451020,1735827040359,-500.0,0.00017971,2]
[347451021,1735827040368,-500.0,0.00017971,2]
[347451022,1735827040377,-500.0,0.00017971,2]
[347451023,1735827040386,-500.0,0.00017971,2]
[347451024,1735827040395,-500.0,0.00017971,2]
[347451025,1735827040404,-500.0,0.00017971,2]
[347451026,1735827040414,-500.0,0.00017971,2]
[347451027,1735827040423,-500.0,0.00017971,2]
[347451028,1735827040432,-500.0,0.00017971,2]
[347451029,1735827040441,-500.0,0.00017971,2]
[347451030,1735827040450,-500.0,0.00017971,2]
[347451031,1735827040459,-500.0,0.00017971,2]
[347451032,1735827040468,-500.0,0.00017971,2]
[347451033,1735827040478,-500.0,0.00017971,2]
[347451034,1735827040487,-161.50654536,0.00017971,2]
[347451035,1735827040496,-500.0,0.00017971,2]
[347451036,1735827040509,-500.0,0.00017971,2]
[347451037,1735827040518,-500.0,0.00017971,2]
[347451038,1735827040527,-500.0,0.00017971,2]
[347451039,1735827040536,-500.0,0.00017971,2]
[347451040,1735827040546,-500.0,0.00017971,2]
[347451041,1735827040555,-500.0,0.00017971,2]
[347451042,1735827040565,-500.0,0.00017971,2]
[347451043,1735827040574,-500.0,0.00017971,2]
[347451044,1735827040584,-500.0,0.00017971,2]
[347451045,1735827040593,-500.0,0.00017971,2]
[347451046,1735827040602,-500.0,0.00017971,2]
[347451047,1735827040611,-500.0,0.00017971,2]
[347451048,1735827040621,-500.0,0.00017971,2]
[347451049,1735827040631,-500.0,0.00017971,2]
[347451050,1735827040640,-500.0,0.00017971,2]
[347451051,1735827040649,-500.0,0.00017971,2]
[347451052,1735827040658,-500.0,0.00017971,2]
[347451053,1735827040667,-527.83619356,0.00017971,2]
[347451054,1735827040676,-26274.99763273,0.00017972,2]
[347451133,1735827046044,-66092.6672387,0.00017972,2]
[347451135,1735827046054,-267.95883388,0.00017973,2]
[347451136,1735827046063,-384.06483075,0.00017973,2]
[347451138,1735827046073,-500.88750972,0.00017973,2]
[347451140,1735827046082,-500.0,0.00017973,2]
[347451141,1735827046092,-500.0,0.00017973,2]
[347451143,1735827046101,-500.0,0.00017973,2]
[347451144,1735827046112,-1000.0,0.00018,18]
[347451145,1735827046122,-3000.0,0.00018,2]
[347451146,1735827046132,-10946.2590418,0.00018102,2]
[347451147,1735827046142,-500.0,0.00018521,2]
[347451148,1735827046151,-1000.0,0.00018521,2]
[347451149,1735827046161,-327.65600529,0.00018532,2]
[347451150,1735827046171,-1263.97782551,0.00018653,2]
[347451151,1735827046181,-160.73472313,0.000189,2]
[347451152,1735827046190,-515.83610526,0.000189,2]
[347451154,1735827046200,-1000.0,0.00019,19]
[347451156,1735827046210,-4000.0,0.00019,3]
[347451157,1735827046219,-152.0,0.00019056,2]
[347451158,1735827046228,-192.23658447,0.00019173,2]
[347451159,1735827046237,-500.0,0.00019173,2]
[347451160,1735827046246,-500.37758831,0.00019173,2]
[347451161,1735827046255,-500.6449107,0.00019173,2]
[347451162,1735827046266,-500.36472562,0.00019173,2]
[347451163,1735827046275,-500.71935887,0.00019173,2]
[347451164,1735827046284,-500.0,0.00019176,2]
[347451166,1735827046297,-161.583,0.00019177,2]
[347451168,1735827046307,-392.78208494,0.00019177,2]
[347451169,1735827046316,-583.10966564,0.00019177,2]
[347451170,1735827046325,-500.0,0.00019177,2]
[347451171,1735827046335,-621.00076899,0.00019177,2]
[347451172,1735827046345,-500.0,0.00019177,2]
[347451173,1735827046354,-500.0,0.00019177,2]
[347451174,1735827046363,-500.0,0.00019178,2]
[347451175,1735827046372,-500.0,0.00019178,2]
[347451176,1735827046382,-500.0,0.00019178,2]
[347451177,1735827046391,-500.0,0.00019178,2]
[347451178,1735827046401,-500.0,0.00019178,2]
[347451179,1735827046412,-500.0,0.00019178,2]
[347451180,1735827046422,-450.15312608,0.00019178,2]
[347451181,1735827046432,-500.0,0.00019178,2]
[347451182,1735827046442,-500.0,0.00019178,2]
[347451183,1735827046451,-502.98833948,0.00019178,2]
[347451184,1735827046460,-500.0,0.00019178,2]
[347451185,1735827046470,-500.0,0.00019178,2]
[347451186,1735827046483,-500.0,0.00019178,2]
[347451187,1735827046492,-500.0,0.00019178,2]
[347451188,1735827046502,-415.07863044,0.00019178,2]
[347451189,1735827046512,-500.0,0.00019178,2]
[347451190,1735827046522,-500.0,0.00019178,2]
[347451191,1735827046531,-500.0,0.00019178,2]
[347451192,1735827046540,-500.0,0.00019178,2]
[347451193,1735827046549,-500.0,0.00019178,2]
[347451194,1735827046558,-500.0,0.00019178,2]
[347451195,1735827046567,-500.0,0.00019178,2]
[347451196,1735827046576,-500.0,0.00019178,2]
[347451197,1735827046585,-500.0,0.00019178,2]
[347451198,1735827046595,-500.0,0.00019178,2]
[347451199,1735827046605,-500.0,0.00019178,2]
[347451200,1735827046617,-500.0,0.00019178,2]
[347451201,1735827046627,-507.72780485,0.00019178,2]
[347451202,1735827046636,-500.0,0.00019178,2]
[347451203,1735827046645,-504.32997768,0.00019178,2]
[347451204,1735827046655,-500.0,0.00019178,2]
[347451205,1735827046664,-500.0,0.00019178,2]
[347451206,1735827046674,-244.75750517,0.00019178,2]
[347451207,1735827046683,-500.0,0.00019178,2]
[347451208,1735827046692,-500.0,0.00019178,2]
[347451209,1735827046702,-500.0,0.00019178,2]
[347451210,1735827046711,-500.0,0.00019178,2]
[347451211,1735827046721,-500.0,0.00019178,2]
[347451212,1735827046731,-500.0,0.00019178,2]
[347451213,1735827046740,-500.0,0.00019178,2]
[347451214,1735827046749,-500.0,0.00019178,2]
[347451215,1735827046759,-500.0,0.00019178,2]
[347451216,1735827046768,-500.0,0.00019178,2]
[347451217,1735827046778,-500.0,0.00019178,2]
[347451218,1735827046787,-572.33,0.00019178,2]
[347451219,1735827046797,-500.0,0.00019178,2]
[347451220,1735827046806,-500.59192339,0.00019178,2]
[347451221,1735827046816,-500.0,0.00019178,2]
[347451222,1735827046825,-500.0,0.00019178,2]
[347451223,1735827046835,-500.0,0.00019178,2]
[347451224,1735827046845,-500.0,0.00019178,2]
[347451225,1735827046854,-500.0,0.00019178,2]
[347451226,1735827046864,-298.58472088,0.00019178,2]
[347451227,1735827046873,-517.39897919,0.00019178,2]
[347451228,1735827046883,-500.0,0.00019178,2]
[347451229,1735827046892,-500.0,0.00019178,2]
[347451230,1735827046901,-500.0,0.00019178,2]
[347451231,1735827046915,-500.0,0.00019178,2]
[347451232,1735827046925,-500.0,0.00019178,2]
[347451233,1735827046935,-500.0,0.00019178,2]
[347451234,1735827046946,-509.66207869,0.00019178,2]
[347451235,1735827046955,-546.31534014,0.00019178,2]
[347451236,1735827046965,-500.0,0.00019178,2]
[347451237,1735827046975,-500.0,0.00019178,2]
[347451238,1735827046986,-500.0,0.00019178,2]
[347451239,1735827046995,-500.0,0.00019178,2]
[347451240,1735827047005,-501.20353182,0.00019178,2]
[347451241,1735827047019,-500.0,0.00019178,2]
[347451242,1735827047028,-500.0,0.00019178,2]
[347451243,1735827047038,-500.0,0.00019178,2]
[347451244,1735827047048,-500.0,0.00019178,2]
[347451245,1735827047058,-500.0,0.00019178,2]
[347451246,1735827047068,-500.0,0.00019178,2]
[347451247,1735827047078,-505.58621627,0.00019178,2]
[347451248,1735827047088,-502.53450734,0.00019178,2]
[347451249,1735827047097,-501.56419484,0.00019178,2]
[347451250,1735827047107,-500.0,0.00019178,2]
[347451251,1735827047116,-427.6374243,0.00019178,2]
[347451252,1735827047127,-500.0,0.00019178,2]
[347451253,1735827047136,-484.23339973,0.00019178,2]
[347451254,1735827047146,-500.0,0.00019178,2]
[347451255,1735827047156,-500.0,0.00019178,2]
[347451256,1735827047166,-500.0,0.00019178,2]
[347451257,1735827047176,-500.0,0.00019178,2]
[347451258,1735827047186,-500.0,0.00019178,2]
[347451259,1735827047195,-500.0,0.00019178,2]
[347451260,1735827047206,-628.73112754,0.00019178,2]
[347451261,1735827047215,-500.0,0.00019178,2]
[347451262,1735827047225,-315.22411799,0.00019178,2]
[347451263,1735827047365,-500.0,0.00019178,2]
[347451264,1735827047375,-500.0,0.00019178,2]
[347451265,1735827047385,-500.0,0.00019178,2]
[347451266,1735827047395,-500.0,0.00019178,2]
[347451267,1735827047404,-500.0,0.00019178,2]
[347451268,1735827047413,-577.00106266,0.00019178,2]
[347451269,1735827047422,-500.0,0.00019178,2]
[347451270,1735827047432,-500.0,0.00019178,2]
[347451271,1735827047441,-500.0,0.00019178,2]
[347451272,1735827047451,-500.0,0.00019178,2]
[347451273,1735827047460,-184.48932636,0.00019178,2]
[347451274,1735827047471,-500.0,0.00019178,2]
[347451275,1735827047480,-500.0,0.00019178,2]
[347451276,1735827047489,-534.51,0.00019178,2]
[347451277,1735827047499,-500.0,0.00019178,2]
[347451278,1735827047508,-500.78567531,0.00019178,2]
[347451279,1735827047521,-500.0,0.00019178,2]
[347451280,1735827047531,-500.0,0.00019178,2]
[347451281,1735827047542,-500.0,0.00019178,2]
[347451282,1735827047551,-500.0,0.00019178,2]
[347451283,1735827047560,-500.0,0.00019178,2]
[347451284,1735827047569,-500.0,0.00019178,2]
[347451285,1735827047579,-500.0,0.00019178,2]
[347451286,1735827047588,-500.0,0.00019178,2]
[347451287,1735827047597,-500.0,0.00019178,2]
[347451288,1735827047606,-500.0,0.00019178,2]
[347451289,1735827047615,-500.0,0.00019178,2]
[347451290,1735827047625,-500.0,0.00019178,2]
[347451291,1735827047634,-500.0,0.00019178,2]
[347451292,1735827047643,-506.10530167,0.00019178,2]
[347451293,1735827047653,-500.0,0.00019178,2]
[347451294,1735827047662,-500.0,0.00019178,2]
[347451295,1735827047672,-500.0,0.00019178,2]
[347451296,1735827047681,-500.0,0.00019178,2]
[347451297,1735827047690,-500.0,0.00019178,2]
[347451298,1735827047700,-500.0,0.00019178,2]
[347451299,1735827047709,-500.0,0.00019178,2]
[347451300,1735827047718,-500.0,0.00019178,2]
[347451301,1735827047728,-500.0,0.00019178,2]
[347451302,1735827047737,-500.0,0.00019178,2]
[347451303,1735827047746,-500.0,0.00019178,2]
[347451304,1735827047755,-500.0,0.00019178,2]
[347451305,1735827047770,-500.0,0.00019178,2]
[347451306,1735827047780,-500.0,0.00019178,2]
[347451307,1735827047789,-500.0,0.00019178,2]
[347451308,1735827047799,-500.0,0.00019178,2]
[347451309,1735827047808,-500.0,0.00019178,2]
[347451310,1735827047817,-500.0,0.00019178,2]
[347451311,1735827047827,-500.0,0.00019178,2]
[347451312,1735827047836,-500.0,0.00019178,2]
[347451313,1735827047846,-500.0,0.00019178,2]
[347451314,1735827047855,-500.0,0.00019178,2]
[347451315,1735827047865,-503.29640942,0.00019178,2]
[347451316,1735827047874,-500.0,0.00019178,2]
[347451317,1735827047883,-500.0,0.00019178,2]
[347451318,1735827047893,-500.0,0.00019178,2]
[347451319,1735827047902,-500.67533674,0.00019178,2]
[347451320,1735827047915,-523.42456405,0.00019178,2]
[347451321,1735827047924,-500.0,0.00019178,2]
[347451322,1735827047933,-500.0,0.00019178,2]
[347451323,1735827047943,-500.0,0.00019178,2]
[347451324,1735827047952,-500.0,0.00019178,2]
[347451325,1735827047961,-500.0,0.00019178,2]
[347451326,1735827047970,-500.0,0.00019178,2]
[347451327,1735827047980,-321.78427328,0.00019178,2]
[347451328,1735827047990,-500.63893206,0.00019178,2]
[347451329,1735827048000,-500.0,0.00019178,2]
[347451330,1735827048009,-500.0,0.00019178,2]
[347451331,1735827048025,-500.0,0.00019178,2]
[347451332,1735827048033,-500.0,0.00019178,2]
[347451333,1735827048043,-500.0,0.00019178,2]
[347451334,1735827048054,-500.0,0.00019178,2]
[347451335,1735827048063,-505.68100544,0.00019178,2]
[347451336,1735827048073,-500.0,0.00019178,2]
[347451337,1735827048082,-500.0,0.00019178,2]
[347451338,1735827048092,-500.0,0.00019178,2]
[347451339,1735827048101,-502.23962418,0.00019178,2]
[347451340,1735827048110,-500.0,0.00019178,2]
[347451341,1735827048119,-500.0,0.00019178,2]
[347451342,1735827048129,-501.58520941,0.00019178,2]
[347451343,1735827048139,-500.0,0.00019178,2]
[347451344,1735827048149,-500.0,0.00019178,2]
[347451345,1735827048159,-500.0,0.00019178,2]
[347451346,1735827048168,-500.0,0.00019178,2]
[347451347,1735827048178,-500.0,0.00019178,2]
[347451348,1735827048188,-500.66237223,0.00019178,2]
[347451349,1735827048197,-500.0,0.00019178,2]
[347451350,1735827048207,-500.0,0.00019178,2]
[347451351,1735827048217,-502.46229436,0.00019178,2]
[347451352,1735827048227,-500.0,0.00019178,2]
[347451353,1735827048237,-500.0,0.00019178,2]
[347451354,1735827048247,-500.0,0.00019178,2]
[347451355,1735827048257,-500.0,0.00019178,2]
[347451356,1735827048274,-500.0,0.00019178,2]
[347451357,1735827048284,-500.0,0.00019178,2]
[347451358,1735827048293,-500.0,0.00019178,2]
[347451359,1735827048303,-500.0,0.00019178,2]
[347451360,1735827048313,-500.0,0.00019178,2]
[347451361,1735827048323,-500.0,0.00019178,2]
[347451362,1735827048333,-500.0,0.00019178,2]
[347451363,1735827048342,-500.0,0.00019178,2]
[347451364,1735827048352,-500.0,0.00019178,2]
[347451365,1735827048362,-242.30403465,0.00019178,2]
[347451366,1735827048371,-500.0,0.00019178,2]
[347451367,1735827048380,-500.0,0.00019178,2]
[347451368,1735827048390,-500.0,0.00019178,2]
[347451369,1735827048399,-500.0,0.00019178,2]
[347451370,1735827048408,-500.0,0.00019178,2]
[347451371,1735827048417,-500.0,0.00019178,2]
[347451372,1735827048426,-501.92472949,0.00019178,2]
[347451373,1735827048435,-506.58133574,0.00019178,2]
[347451374,1735827048445,-500.0,0.00019178,2]
[347451375,1735827048454,-501.41118534,0.00019178,2]
[347451376,1735827048463,-500.0,0.00019178,2]
[347451377,1735827048472,-500.0,0.00019178,2]
[347451378,1735827048481,-200.0,0.00019178,2]
[347451379,1735827048491,-502.23589234,0.00019178,2]
[347451380,1735827048501,-506.17089164,0.00019178,2]
[347451381,1735827048511,-502.10550709,0.00019178,2]
[347451382,1735827048525,-500.0,0.00019178,2]
[347451383,1735827048535,-500.0,0.00019178,2]
[347451384,1735827048545,-531.49480869,0.00019178,2]
[347451385,1735827048554,-500.0,0.00019178,2]
[347451386,1735827048563,-500.0,0.00019178,2]
[347451387,1735827048573,-500.0,0.00019178,2]
[347451388,1735827048582,-500.0,0.00019178,2]
[347451389,1735827048592,-507.68607191,0.00019178,2]
[347451390,1735827048601,-500.0,0.00019178,2]
[347451391,1735827048610,-500.0,0.00019178,2]
[347451392,1735827048620,-175.40938668,0.00019178,2]
[347451393,1735827048630,-500.0,0.00019178,2]
[347451394,1735827048639,-500.0,0.00019178,2]
[347451395,1735827048649,-500.0,0.00019178,2]
[347451396,1735827048658,-500.0,0.00019178,2]
[347451397,1735827048668,-500.0,0.00019178,2]
[347451398,1735827048678,-500.0,0.00019178,2]
[347451399,1735827048688,-500.0,0.00019178,2]
[347451400,1735827048698,-593.8195549,0.00019178,2]
[347451401,1735827048707,-500.0,0.00019178,2]
[347451402,1735827048717,-500.0,0.00019178,2]
[347451403,1735827048726,-500.0,0.00019178,2]
[347451404,1735827048737,-500.0,0.00019178,2]
[347451405,1735827048746,-500.0,0.00019178,2]
[347451406,1735827048756,-525.35241673,0.00019178,2]
[347451407,1735827048770,-500.0,0.00019178,2]
[347451408,1735827048779,-500.0,0.00019178,2]
[347451409,1735827048788,-500.0,0.00019178,2]
[347451410,1735827048799,-500.0,0.00019178,2]
[347451411,1735827048808,-500.0,0.00019178,2]
[347451412,1735827048817,-500.0,0.00019178,2]
[347451413,1735827048826,-500.0,0.00019178,2]
[347451414,1735827048836,-500.0,0.00019178,2]
[347451415,1735827048845,-501.83842667,0.00019178,2]
[347451416,1735827048855,-500.0,0.00019178,2]
[347451417,1735827048865,-233.26051684,0.00019178,2]
[347451418,1735827048875,-500.0,0.00019178,2]
[347451419,1735827048884,-500.0,0.00019178,2]
[347451420,1735827048894,-500.0,0.00019178,2]
[347451421,1735827048907,-500.0,0.00019178,2]
[347451422,1735827048916,-500.0,0.00019178,2]
[347451423,1735827048926,-500.0,0.00019178,2]
[347451424,1735827048935,-500.0,0.00019178,2]
[347451425,1735827048945,-500.0,0.00019178,2]
[347451426,1735827048954,-500.0,0.00019178,2]
[347451427,1735827048964,-500.0,0.00019178,2]
[347451428,1735827048973,-500.0,0.00019178,2]
[347451429,1735827048982,-500.0,0.00019178,2]
[347451430,1735827048992,-500.0,0.00019178,2]
[347451431,1735827049002,-500.0,0.00019178,2]
[347451432,1735827049013,-500.0,0.00019178,2]
[347451433,1735827049025,-500.0,0.00019178,2]
[347451434,1735827049035,-500.0,0.00019178,2]
[347451435,1735827049045,-500.0,0.00019178,2]
[347451436,1735827049055,-500.0,0.00019178,2]
[347451437,1735827049065,-595.5899089,0.00019178,2]
[347451438,1735827049075,-500.0,0.00019178,2]
[347451439,1735827049085,-500.0,0.00019178,2]
[347451440,1735827049095,-506.08971714,0.00019178,2]
[347451441,1735827049104,-500.0,0.00019178,2]
[347451442,1735827049114,-500.0,0.00019178,2]
[347451443,1735827049124,-500.0,0.00019178,2]
[347451444,1735827049134,-500.0,0.00019178,2]
[347451445,1735827049144,-500.0,0.00019178,2]
[347451446,1735827049155,-500.0,0.00019178,2]
[347451447,1735827049164,-500.0,0.00019178,2]
[347451448,1735827049174,-500.0,0.00019178,2]
[347451449,1735827049184,-500.0,0.00019178,2]
[347451450,1735827049194,-500.0,0.00019178,2]
[347451451,1735827049204,-500.0,0.00019178,2]
[347451452,1735827049214,-500.0,0.00019178,2]
[347451453,1735827049224,-500.0,0.00019178,2]
[347451454,1735827049234,-500.0,0.00019178,2]
[347451455,1735827049245,-500.0,0.00019178,2]
[347451456,1735827049255,-500.0,0.00019178,2]
[347451457,1735827049268,-500.0,0.00019178,2]
[347451458,1735827049278,-500.0,0.00019178,2]
[347451459,1735827049288,-712.94,0.00019178,2]
[347451460,1735827049298,-500.0,0.00019178,2]
[347451461,1735827049308,-712.94,0.00019178,2]
[347451462,1735827049318,-500.0,0.00019178,2]
[347451463,1735827049329,-712.94,0.00019178,2]
[347451464,1735827049339,-712.94,0.00019178,2]
[347451465,1735827049349,-511.98,0.00019178,2]
[347451466,1735827049359,-500.0,0.00019178,2]
[347451467,1735827049368,-500.0,0.00019178,2]
[347451468,1735827049378,-500.0,0.00019178,2]
[347451469,1735827049388,-249.46304998,0.00019178,2]
[347451470,1735827049397,-500.0,0.00019178,2]
[347451471,1735827049407,-500.0,0.00019178,2]
[347451472,1735827049417,-500.0,0.00019178,2]
[347451473,1735827049426,-512.37545257,0.00019178,2]
[347451474,1735827049436,-500.0,0.00019178,2]
[347451475,1735827049445,-500.0,0.00019178,2]
[347451476,1735827049454,-500.0,0.00019178,2]
[347451477,1735827049464,-500.0,0.00019178,2]
[347451478,1735827049473,-500.0,0.00019178,2]
[347451479,1735827049482,-500.0,0.00019178,2]
[347451480,1735827049491,-500.0,0.00019178,2]
[347451481,1735827049500,-500.0,0.00019178,2]
[347451482,1735827049509,-500.0,0.00019178,2]
[347451483,1735827049524,-500.0,0.00019178,2]
[347451484,1735827049533,-513.09,0.00019178,2]
[347451485,1735827049542,-500.0,0.00019178,2]
[347451486,1735827049552,-500.0,0.00019178,2]
[347451487,1735827049562,-500.0,0.00019178,2]